[Event "Early-Titled-Tuesday-Blitz-October-17-2023"]
[Site "Chess.com"]
[Date "2023.10.17"]
[Round "9"]
[White "CuattroPrincesses"]
[Black "ExcitingTrap"]
[Result "1-0"]
[WhiteElo "2293"]
[BlackElo "2375"]
[TimeControl "180+1"]
[EndTime "9:49:34 PDT"]
[Termination "CuattroPrincesses won on time"]

1. e4 {[%clk 0:03:00.9]} 1... e5 {[%clk 0:02:59.9]} 2. Nf3 {[%clk 0:03:00.7]}
2... Nc6 {[%clk 0:03:00.6]} 3. Bb5 {[%clk 0:02:58.3]} 3... a6 {[%clk 0:03:01]}
4. Ba4 {[%clk 0:02:58]} 4... Nf6 {[%clk 0:03:01.4]} 5. d3 {[%clk 0:02:57.7]}
5... Be7 {[%clk 0:02:58.2]} 6. Bxc6 {[%clk 0:02:46.2]} 6... dxc6 {[%clk
0:02:57.2]} 7. Nxe5 {[%clk 0:02:46]} 7... O-O {[%clk 0:02:56.6]} 8. O-O {[%clk
0:02:43.5]} 8... Bd6 {[%clk 0:02:55.3]} 9. Nf3 {[%clk 0:02:09.3]} 9... Bg4
{[%clk 0:02:54.5]} 10. Bg5 {[%clk 0:02:01.4]} 10... h6 {[%clk 0:02:48.6]} 11.
Bh4 {[%clk 0:02:00.8]} 11... g5 {[%clk 0:02:47.2]} 12. Bg3 {[%clk 0:02:00.4]}
12... Bc5 {[%clk 0:02:45.5]} 13. Nbd2 {[%clk 0:01:34.4]} 13... Re8 {[%clk
0:02:38.8]} 14. Nc4 {[%clk 0:01:21.7]} 14... Bh5 {[%clk 0:02:19.5]} 15. Ne3
{[%clk 0:01:13.4]} 15... Kh7 {[%clk 0:01:53.1]} 16. h4 {[%clk 0:00:45.8]} 16...
g4 {[%clk 0:01:33.7]} 17. Ne5 {[%clk 0:00:33.2]} 17... Rg8 {[%clk 0:01:33.2]}
18. N5c4 {[%clk 0:00:24.7]} 18... Qd7 {[%clk 0:01:14.3]} 19. Nf5 {[%clk
0:00:23.4]} 19... Rae8 {[%clk 0:01:07.9]} 20. Nce3 {[%clk 0:00:17]} 20... Bb6
{[%clk 0:01:02.3]} 21. Qd2 {[%clk 0:00:16.8]} 21... Rg6 {[%clk 0:00:59.4]} 22.
Qc3 {[%clk 0:00:16.3]} 22... Qe6 {[%clk 0:00:53.8]} 23. Rae1 {[%clk 0:00:14.1]}
23... Qxa2 {[%clk 0:00:44.9]} 24. b3 {[%clk 0:00:11.7]} 24... Qa3 {[%clk
0:00:44.5]} 25. Ra1 {[%clk 0:00:10.2]} 25... Qf8 {[%clk 0:00:39.4]} 26. Qc4
{[%clk 0:00:10.4]} 26... Nd7 {[%clk 0:00:33.8]} 27. Qc3 {[%clk 0:00:10]} 27...
f6 {[%clk 0:00:24.5]} 28. Nc4 {[%clk 0:00:10.1]} 28... Rg8 {[%clk 0:00:19.4]}
29. Nxb6 {[%clk 0:00:09.3]} 29... cxb6 {[%clk 0:00:20.3]} 30. Nd6 {[%clk
0:00:09.1]} 30... Re6 {[%clk 0:00:19.2]} 31. Nxb7 {[%clk 0:00:09.2]} 31... Ne5
{[%clk 0:00:18.4]} 32. Bxe5 {[%clk 0:00:08.3]} 32... fxe5 {[%clk 0:00:19.3]} 33.
Rxa6 {[%clk 0:00:08.1]} 33... Qc8 {[%clk 0:00:15.6]} 34. Ra7 {[%clk 0:00:07.8]}
34... Rg7 {[%clk 0:00:14.5]} 35. Qc4 {[%clk 0:00:05.9]} 35... Bf7 {[%clk
0:00:12.4]} 36. Qa6 {[%clk 0:00:05.4]} 36... Re7 {[%clk 0:00:11.9]} 37. Qxb6
{[%clk 0:00:04.9]} 37... Be8 {[%clk 0:00:10.1]} 38. Nd6 {[%clk 0:00:03.2]} 38...
Qe6 {[%clk 0:00:10.2]} 39. Rxe7 {[%clk 0:00:02.3]} 39... Qxe7 {[%clk 0:00:09.9]}
40. Nxe8 {[%clk 0:00:02.6]} 40... Qxe8 {[%clk 0:00:10.6]} 41. Qc5 {[%clk
0:00:03]} 41... h5 {[%clk 0:00:09.2]} 42. g3 {[%clk 0:00:03.4]} 42... Rf7 {[%clk
0:00:08.6]} 43. Qe3 {[%clk 0:00:04.1]} 43... Rf3 {[%clk 0:00:07.4]} 44. Qg5
{[%clk 0:00:04.7]} 44... Qe6 {[%clk 0:00:05.7]} 45. Qxh5+ {[%clk 0:00:04.3]}
45... Kg7 {[%clk 0:00:06.3]} 46. Qg5+ {[%clk 0:00:04.8]} 46... Kf8 {[%clk
0:00:05.9]} 47. h5 {[%clk 0:00:05.4]} 47... Qd6 {[%clk 0:00:03.8]} 48. h6 {[%clk
0:00:05.3]} 48... Qc5 {[%clk 0:00:04.3]} 49. Qg7+ {[%clk 0:00:05.2]} 49... Ke8
{[%clk 0:00:05]} 50. Kg2 {[%clk 0:00:05.2]} 50... Rf7 {[%clk 0:00:04.5]} 51.
Qg8+ {[%clk 0:00:05.2]} 51... Rf8 {[%clk 0:00:05]} 52. h7 {[%clk 0:00:05.5]}
52... Rxg8 {[%clk 0:00:02]} 53. hxg8=Q+ {[%clk 0:00:05.4]} 53... Kd7 {[%clk
0:00:02.9]} 54. Qxg4+ {[%clk 0:00:06]} 54... Kc7 {[%clk 0:00:03.2]} 55. Qf5
{[%clk 0:00:06.7]} 55... Kb6 {[%clk 0:00:02.7]} 56. Qf7 {[%clk 0:00:05.6]} 56...
Qxc2 {[%clk 0:00:02.6]} 57. Qc4 {[%clk 0:00:06]} 57... Qe2 {[%clk 0:00:02.7]}
58. b4 {[%clk 0:00:06.4]} 58... Qg4 {[%clk 0:00:02.3]} 59. Qc5+ {[%clk
0:00:07.3]} 59... Kb7 {[%clk 0:00:01.6]} 60. b5 {[%clk 0:00:07.7]} 60... cxb5
{[%clk 0:00:01.7]} 61. Qxb5+ {[%clk 0:00:08.6]} 61... Kc7 {[%clk 0:00:02.6]} 62.
Qd5 {[%clk 0:00:08.9]} 62... Qg5 {[%clk 0:00:02.2]} 63. d4 {[%clk 0:00:09.2]}
1-0

[Event "Early-Titled-Tuesday-Blitz-October-17-2023"]
[Site "Chess.com"]
[Date "2023.10.17"]
[Round "9"]
[White "Mesa_1"]
[Black "Byniolus"]
[Result "1-0"]
[WhiteElo "2616"]
[BlackElo "2779"]
[TimeControl "180+1"]
[EndTime "9:49:45 PDT"]
[Termination "Mesa_1 won on time"]

1. e4 {[%clk 0:03:00.9]} 1... d6 {[%clk 0:02:59.4]} 2. d4 {[%clk 0:03:01.8]}
2... Nf6 {[%clk 0:03:00.3]} 3. Nc3 {[%clk 0:03:02.2]} 3... c6 {[%clk 0:03:01]}
4. Nf3 {[%clk 0:03:03.1]} 4... Bg4 {[%clk 0:03:01]} 5. h3 {[%clk 0:03:03.8]}
5... Bh5 {[%clk 0:03:01.6]} 6. Qe2 {[%clk 0:03:04]} 6... e6 {[%clk 0:03:01.7]}
7. g4 {[%clk 0:03:04.7]} 7... Bg6 {[%clk 0:03:02.3]} 8. h4 {[%clk 0:03:03.9]}
8... h5 {[%clk 0:03:02.1]} 9. g5 {[%clk 0:03:03]} 9... Nfd7 {[%clk 0:03:02.3]}
10. d5 {[%clk 0:03:03.7]} 10... cxd5 {[%clk 0:03:02.6]} 11. exd5 {[%clk
0:03:04.6]} 11... e5 {[%clk 0:03:03.5]} 12. Bh3 {[%clk 0:03:02.6]} 12... Be7
{[%clk 0:03:03.5]} 13. Be3 {[%clk 0:02:54.6]} 13... Na6 {[%clk 0:03:01.9]} 14.
O-O-O {[%clk 0:02:52.5]} 14... O-O {[%clk 0:03:00]} 15. Nd2 {[%clk 0:02:41.1]}
15... Nac5 {[%clk 0:02:53.7]} 16. Nf1 {[%clk 0:02:27.2]} 16... b5 {[%clk
0:02:42.9]} 17. Bxd7 {[%clk 0:01:46.9]} 17... Nxd7 {[%clk 0:02:35.4]} 18. Ng3
{[%clk 0:01:44.1]} 18... b4 {[%clk 0:02:35.1]} 19. Nce4 {[%clk 0:01:36.6]} 19...
Qa5 {[%clk 0:02:20.6]} 20. Kb1 {[%clk 0:01:35.1]} 20... Rfc8 {[%clk 0:02:21.3]}
21. Bc1 {[%clk 0:01:30.1]} 21... Nc5 {[%clk 0:02:13.4]} 22. f3 {[%clk
0:01:08.6]} 22... Rc7 {[%clk 0:01:59]} 23. b3 {[%clk 0:01:08.2]} 23... Rac8
{[%clk 0:01:58.4]} 24. Bb2 {[%clk 0:01:06.2]} 24... Nd7 {[%clk 0:01:43.5]} 25.
Rd2 {[%clk 0:00:56.7]} 25... Bf8 {[%clk 0:01:36.8]} 26. Rf1 {[%clk 0:00:56.3]}
26... Nb6 {[%clk 0:01:32.5]} 27. f4 {[%clk 0:00:52.9]} 27... exf4 {[%clk
0:01:27]} 28. Nxh5 {[%clk 0:00:49.7]} 28... Nxd5 {[%clk 0:00:50.5]} 29. Rxd5
{[%clk 0:00:20.2]} 29... Bxh5 {[%clk 0:00:50.9]} 30. Qd3 {[%clk 0:00:11.1]}
30... Qb6 {[%clk 0:00:36.3]} 31. Nf6+ {[%clk 0:00:08.7]} 31... gxf6 {[%clk
0:00:33]} 32. gxf6 {[%clk 0:00:09.6]} 32... Bg6 {[%clk 0:00:25.4]} 33. Rg5
{[%clk 0:00:10.3]} 33... Bh6 {[%clk 0:00:09.2]} 34. Rxg6+ {[%clk 0:00:10.5]}
34... fxg6 {[%clk 0:00:06.1]} 35. Qxg6+ {[%clk 0:00:11.4]} 35... Kf8 {[%clk
0:00:06.2]} 36. Qxh6+ {[%clk 0:00:11.1]} 36... Kf7 {[%clk 0:00:07.1]} 37. Qh5+
{[%clk 0:00:08.4]} 37... Ke6 {[%clk 0:00:06.7]} 38. Qg4+ {[%clk 0:00:07.5]}
38... Kd5 {[%clk 0:00:06.3]} 39. Qxf4 {[%clk 0:00:04.6]} 39... Kc6 {[%clk
0:00:03.1]} 40. f7 {[%clk 0:00:04.8]} 40... Rf8 {[%clk 0:00:03]} 41. Qe4+ {[%clk
0:00:05.4]} 41... d5 {[%clk 0:00:02.8]} 42. Qe6+ {[%clk 0:00:03.3]} 42... Kc5
{[%clk 0:00:03.5]} 43. Qe3+ {[%clk 0:00:02.5]} 43... Kc6 {[%clk 0:00:04.1]} 44.
Rf6+ {[%clk 0:00:02.8]} 44... Kb7 {[%clk 0:00:04.5]} 45. Rxb6+ {[%clk
0:00:03.7]} 45... axb6 {[%clk 0:00:05.4]} 46. Qe5 {[%clk 0:00:03.6]} 46... Rcxf7
{[%clk 0:00:05]} 47. Qxd5+ {[%clk 0:00:04.2]} 47... Ka7 {[%clk 0:00:05]} 48. Bc1
{[%clk 0:00:05.1]} 48... Rf1 {[%clk 0:00:04.9]} 49. Qb5 {[%clk 0:00:05.3]} 49...
R8f4 {[%clk 0:00:04.2]} 50. Qd7+ {[%clk 0:00:04.5]} 50... Ka6 {[%clk 0:00:04.3]}
51. Qd2 {[%clk 0:00:05.4]} 51... R4f2 {[%clk 0:00:01.8]} 52. Qd3+ {[%clk
0:00:05.8]} 52... Ka5 {[%clk 0:00:01.8]} 53. h5 {[%clk 0:00:06.7]} 53... Rg1
{[%clk 0:00:01.5]} 54. Qd5+ {[%clk 0:00:06.4]} 54... Ka6 {[%clk 0:00:02.1]} 55.
Qa8+ {[%clk 0:00:06.7]} 55... Kb5 {[%clk 0:00:02.6]} 56. Qe8+ {[%clk 0:00:07.3]}
56... Ka6 {[%clk 0:00:02.6]} 57. Qa8+ {[%clk 0:00:07.8]} 57... Kb5 {[%clk
0:00:02.9]} 58. Qd5+ {[%clk 0:00:08.7]} 58... Ka6 {[%clk 0:00:03.2]} 59. h6
{[%clk 0:00:09.5]} 59... Rff1 {[%clk 0:00:03.3]} 60. Qd3+ {[%clk 0:00:09.7]}
60... Ka5 {[%clk 0:00:03.4]} 61. Qd5+ {[%clk 0:00:09.4]} 61... Ka6 {[%clk
0:00:03.6]} 62. Qd3+ {[%clk 0:00:09.6]} 62... Ka5 {[%clk 0:00:04]} 63. Qd2
{[%clk 0:00:10.5]} 63... Rh1 {[%clk 0:00:04]} 64. a3 {[%clk 0:00:10.3]} 64...
Ka6 {[%clk 0:00:02.1]} 65. axb4 {[%clk 0:00:09.8]} 65... b5 {[%clk 0:00:01.6]}
66. Kb2 {[%clk 0:00:10]} 66... Kb7 {[%clk 0:00:02]} 67. Qd7+ {[%clk 0:00:09.9]}
67... Kb8 {[%clk 0:00:01.5]} 68. Bf4+ {[%clk 0:00:08.8]} 1-0

[Event "Early-Titled-Tuesday-Blitz-October-17-2023"]
[Site "Chess.com"]
[Date "2023.10.17"]
[Round "9"]
[White "Nf3c5"]
[Black "alsdesdentao"]
[Result "1-0"]
[WhiteElo "2603"]
[BlackElo "2474"]
[TimeControl "180+1"]
[EndTime "9:49:57 PDT"]
[Termination "Nf3c5 won by checkmate"]

1. d4 {[%clk 0:02:55.2]} 1... d6 {[%clk 0:02:59.1]} 2. e4 {[%clk 0:02:50.9]}
2... Nf6 {[%clk 0:02:58.8]} 3. Bd3 {[%clk 0:02:49.9]} 3... e5 {[%clk 0:02:56.8]}
4. c3 {[%clk 0:02:49.1]} 4... Be7 {[%clk 0:02:55.8]} 5. Nf3 {[%clk 0:02:48.1]}
5... Nbd7 {[%clk 0:02:53.9]} 6. O-O {[%clk 0:02:47.7]} 6... O-O {[%clk
0:02:54.2]} 7. Re1 {[%clk 0:02:46.7]} 7... c6 {[%clk 0:02:54.3]} 8. Bg5 {[%clk
0:02:39]} 8... Re8 {[%clk 0:02:51.7]} 9. Nbd2 {[%clk 0:02:36.7]} 9... Qc7 {[%clk
0:02:51.1]} 10. a4 {[%clk 0:02:34.7]} 10... Nf8 {[%clk 0:02:38.9]} 11. dxe5
{[%clk 0:02:19.8]} 11... dxe5 {[%clk 0:02:36.8]} 12. Nc4 {[%clk 0:02:17.8]}
12... Ng6 {[%clk 0:02:35]} 13. b4 {[%clk 0:02:09.9]} 13... h6 {[%clk 0:02:32]}
14. Be3 {[%clk 0:02:06.7]} 14... Rd8 {[%clk 0:02:26.9]} 15. Qc2 {[%clk
0:02:06.3]} 15... Bg4 {[%clk 0:02:25.9]} 16. Nfd2 {[%clk 0:02:03.1]} 16... Qd7
{[%clk 0:02:01.9]} 17. Bf1 {[%clk 0:01:59.4]} 17... Nh5 {[%clk 0:01:56.7]} 18.
f3 {[%clk 0:01:45.3]} 18... Be6 {[%clk 0:01:54.3]} 19. Rad1 {[%clk 0:01:45.5]}
19... Qc7 {[%clk 0:01:53.5]} 20. a5 {[%clk 0:01:40.8]} 20... Nhf4 {[%clk
0:01:51.9]} 21. Nb3 {[%clk 0:01:25.2]} 21... Nh4 {[%clk 0:01:43]} 22. Ncd2
{[%clk 0:00:42.8]} 22... Nhg6 {[%clk 0:01:28.7]} 23. g3 {[%clk 0:00:36.2]} 23...
Nh3+ {[%clk 0:01:26.9]} 24. Kh1 {[%clk 0:00:33.8]} 24... Ng5 {[%clk 0:01:24.1]}
25. Be2 {[%clk 0:00:29.8]} 25... b6 {[%clk 0:01:17.3]} 26. Kg2 {[%clk
0:00:25.6]} 26... Bh3+ {[%clk 0:01:16.2]} 27. Kf2 {[%clk 0:00:25.3]} 27... Rab8
{[%clk 0:01:15.3]} 28. Nc4 {[%clk 0:00:23.5]} 28... Be6 {[%clk 0:01:14]} 29.
axb6 {[%clk 0:00:21.4]} 29... axb6 {[%clk 0:01:13.7]} 30. Rxd8+ {[%clk 0:00:22]}
30... Bxd8 {[%clk 0:01:14.6]} 31. Rd1 {[%clk 0:00:22.4]} 31... Be7 {[%clk
0:01:14.6]} 32. Qa2 {[%clk 0:00:20.1]} 32... Qb7 {[%clk 0:01:11.2]} 33. h4
{[%clk 0:00:19.9]} 33... Nh7 {[%clk 0:01:08.7]} 34. Nxb6 {[%clk 0:00:17.5]}
34... f5 {[%clk 0:01:03.5]} 35. Bc4 {[%clk 0:00:16.1]} 35... Bxc4 {[%clk
0:01:02]} 36. Nxc4 {[%clk 0:00:17]} 36... fxe4 {[%clk 0:01:02.7]} 37. fxe4
{[%clk 0:00:17.4]} 37... Nf6 {[%clk 0:01:00.2]} 38. Qc2 {[%clk 0:00:15.4]} 38...
Rf8 {[%clk 0:00:57]} 39. Kg2 {[%clk 0:00:15.5]} 39... Ng4 {[%clk 0:00:54.6]} 40.
Bg1 {[%clk 0:00:15.5]} 40... Qb5 {[%clk 0:00:50.2]} 41. Ne3 {[%clk 0:00:12.2]}
41... Nf6 {[%clk 0:00:41.5]} 42. Nf5 {[%clk 0:00:11.5]} 42... Bd8 {[%clk
0:00:38.1]} 43. Nc5 {[%clk 0:00:09.7]} 43... Qc4 {[%clk 0:00:34.8]} 44. Qd3
{[%clk 0:00:09.2]} 44... Qf7 {[%clk 0:00:30.8]} 45. Nd7 {[%clk 0:00:07.7]} 45...
Nxd7 {[%clk 0:00:24.8]} 46. Qxd7 {[%clk 0:00:08.6]} 46... Qa2+ {[%clk
0:00:25.4]} 47. Qd2 {[%clk 0:00:08.2]} 47... Qc4 {[%clk 0:00:24.5]} 48. Qd3
{[%clk 0:00:08.6]} 48... Qa2+ {[%clk 0:00:24.3]} 49. Rd2 {[%clk 0:00:09.2]}
49... Qe6 {[%clk 0:00:25]} 50. Bc5 {[%clk 0:00:09.6]} 50... Re8 {[%clk
0:00:23.2]} 51. Qd7 {[%clk 0:00:09.7]} 51... Bf6 {[%clk 0:00:23.4]} 52. Qxe6+
{[%clk 0:00:09.3]} 52... Rxe6 {[%clk 0:00:17.6]} 53. Rd7 {[%clk 0:00:09.9]}
53... Kh7 {[%clk 0:00:18.1]} 54. h5 {[%clk 0:00:09.9]} 54... Nh8 {[%clk
0:00:18.3]} 55. Rc7 {[%clk 0:00:09.1]} 55... Kg8 {[%clk 0:00:16.9]} 56. Kf3
{[%clk 0:00:09.3]} 56... Nf7 {[%clk 0:00:17.4]} 57. Rc8+ {[%clk 0:00:09.5]}
57... Kh7 {[%clk 0:00:17.6]} 58. Rf8 {[%clk 0:00:08.8]} 58... Ng5+ {[%clk
0:00:18.5]} 59. Kg4 {[%clk 0:00:08.6]} 59... Nxe4 {[%clk 0:00:18.1]} 60. Be3
{[%clk 0:00:07.6]} 60... Bg5 {[%clk 0:00:18.1]} 61. Bxg5 {[%clk 0:00:07.2]}
61... Nxg5 {[%clk 0:00:17.4]} 62. Nh4 {[%clk 0:00:07.7]} 62... Rf6 {[%clk
0:00:16.4]} 63. Rc8 {[%clk 0:00:06]} 63... Nf7 {[%clk 0:00:14.6]} 64. Ng6 {[%clk
0:00:05.7]} 64... e4 {[%clk 0:00:14.3]} 65. Re8 {[%clk 0:00:05.9]} 65... Rxg6+
{[%clk 0:00:13.5]} 66. hxg6+ {[%clk 0:00:06]} 66... Kxg6 {[%clk 0:00:14.4]} 67.
Rxe4 {[%clk 0:00:06.6]} 67... h5+ {[%clk 0:00:15.3]} 68. Kf3 {[%clk 0:00:06.7]}
68... Ng5+ {[%clk 0:00:15.6]} 69. Kf4 {[%clk 0:00:07.2]} 69... Nxe4 {[%clk
0:00:16.5]} 70. Kxe4 {[%clk 0:00:08.1]} 70... Kg5 {[%clk 0:00:17]} 71. c4 {[%clk
0:00:08.6]} 71... Kg4 {[%clk 0:00:17.6]} 72. b5 {[%clk 0:00:09.1]} 72... cxb5
{[%clk 0:00:17.6]} 73. cxb5 {[%clk 0:00:10]} 73... Kxg3 {[%clk 0:00:18.2]} 74.
b6 {[%clk 0:00:10.6]} 74... h4 {[%clk 0:00:19.1]} 75. b7 {[%clk 0:00:11.5]}
75... h3 {[%clk 0:00:19.5]} 76. b8=Q+ {[%clk 0:00:12.4]} 76... Kg2 {[%clk
0:00:20.4]} 77. Qb2+ {[%clk 0:00:11.3]} 77... Kg1 {[%clk 0:00:20.7]} 78. Kf3
{[%clk 0:00:10.3]} 78... h2 {[%clk 0:00:21.6]} 79. Qg2# {[%clk 0:00:10.4]} 1-0

[Event "Early-Titled-Tuesday-Blitz-October-17-2023"]
[Site "Chess.com"]
[Date "2023.10.17"]
[Round "9"]
[White "TigrVShlyape"]
[Black "Russian_berezka"]
[Result "1/2-1/2"]
[WhiteElo "2831"]
[BlackElo "2682"]
[TimeControl "180+1"]
[EndTime "9:49:59 PDT"]
[Termination "Game drawn - insufficient material"]

1. d4 {[%clk 0:03:00.9]} 1... Nf6 {[%clk 0:02:58.7]} 2. Bf4 {[%clk 0:02:59.6]}
2... d5 {[%clk 0:02:57]} 3. e3 {[%clk 0:02:59.2]} 3... e6 {[%clk 0:02:56.5]} 4.
Nf3 {[%clk 0:02:57.6]} 4... c5 {[%clk 0:02:56.9]} 5. c3 {[%clk 0:02:57.4]} 5...
Nc6 {[%clk 0:02:57.3]} 6. Nbd2 {[%clk 0:02:56.9]} 6... Bd6 {[%clk 0:02:52.2]} 7.
Bg3 {[%clk 0:02:56.4]} 7... O-O {[%clk 0:02:52.5]} 8. Bd3 {[%clk 0:02:54.4]}
8... a5 {[%clk 0:02:52.9]} 9. a4 {[%clk 0:02:51]} 9... Qe7 {[%clk 0:02:49.9]}
10. Ne5 {[%clk 0:02:45.2]} 10... g6 {[%clk 0:02:50]} 11. f4 {[%clk 0:02:35.7]}
11... Nh5 {[%clk 0:02:29.6]} 12. O-O {[%clk 0:02:32.8]} 12... Nxg3 {[%clk
0:02:24]} 13. hxg3 {[%clk 0:02:31.9]} 13... f6 {[%clk 0:02:14.5]} 14. Nef3
{[%clk 0:02:23.5]} 14... e5 {[%clk 0:02:05.5]} 15. dxe5 {[%clk 0:02:07.6]} 15...
fxe5 {[%clk 0:02:06.4]} 16. Bb5 {[%clk 0:02:01.1]} 16... Bg4 {[%clk 0:01:52.7]}
17. Qc2 {[%clk 0:01:39.3]} 17... e4 {[%clk 0:01:48.6]} 18. Nh2 {[%clk 0:01:37]}
18... Bd7 {[%clk 0:01:32.8]} 19. Rfe1 {[%clk 0:01:30.5]} 19... h5 {[%clk
0:01:27.4]} 20. Rad1 {[%clk 0:01:23.7]} 20... h4 {[%clk 0:00:43.8]} 21. gxh4
{[%clk 0:01:20]} 21... Qxh4 {[%clk 0:00:43.2]} 22. Ndf1 {[%clk 0:01:15]} 22...
Be6 {[%clk 0:00:40.2]} 23. g3 {[%clk 0:01:13.9]} 23... Qe7 {[%clk 0:00:39]} 24.
Qg2 {[%clk 0:01:08.7]} 24... Kg7 {[%clk 0:00:38.3]} 25. c4 {[%clk 0:01:08.2]}
25... Nb4 {[%clk 0:00:37.3]} 26. cxd5 {[%clk 0:01:07.5]} 26... Bxd5 {[%clk
0:00:36.8]} 27. Rd2 {[%clk 0:01:04.2]} 27... Rad8 {[%clk 0:00:35.8]} 28. Red1
{[%clk 0:01:04.3]} 28... Bc7 {[%clk 0:00:36]} 29. Qe2 {[%clk 0:01:02]} 29... Qe6
{[%clk 0:00:35.3]} 30. Qg4 {[%clk 0:00:54.3]} 30... Qxg4 {[%clk 0:00:31.7]} 31.
Nxg4 {[%clk 0:00:54.3]} 31... Be6 {[%clk 0:00:32.5]} 32. Nf2 {[%clk 0:00:53.6]}
32... Rxd2 {[%clk 0:00:30.1]} 33. Nxd2 {[%clk 0:00:52.5]} 33... Nd5 {[%clk
0:00:28.9]} 34. Ndxe4 {[%clk 0:00:51.6]} 34... Nxe3 {[%clk 0:00:27.7]} 35. Re1
{[%clk 0:00:48.8]} 35... Nc2 {[%clk 0:00:18.6]} 36. Nxc5 {[%clk 0:00:48.8]}
36... Nxe1 {[%clk 0:00:15]} 37. Nxe6+ {[%clk 0:00:48.8]} 37... Kf7 {[%clk
0:00:15.1]} 38. Nxc7 {[%clk 0:00:48.9]} 38... Rc8 {[%clk 0:00:15.1]} 39. Nd5
{[%clk 0:00:47.9]} 39... Rc2 {[%clk 0:00:14.4]} 40. b3 {[%clk 0:00:46.4]} 40...
Nf3+ {[%clk 0:00:14.1]} 41. Kg2 {[%clk 0:00:46]} 41... Ne1+ {[%clk 0:00:14]} 42.
Kf1 {[%clk 0:00:45.9]} 42... Rc1 {[%clk 0:00:13.3]} 43. Ke2 {[%clk 0:00:45.3]}
43... Nc2 {[%clk 0:00:11.7]} 44. Bc4 {[%clk 0:00:44.9]} 44... Na3 {[%clk
0:00:09.6]} 45. Bd3 {[%clk 0:00:44.2]} 45... Ra1 {[%clk 0:00:05.2]} 46. Ne4
{[%clk 0:00:43.2]} 46... Ra2+ {[%clk 0:00:05.1]} 47. Kf3 {[%clk 0:00:41.1]}
47... Rb2 {[%clk 0:00:05.8]} 48. Bc4 {[%clk 0:00:34.7]} 48... Nxc4 {[%clk
0:00:05.4]} 49. bxc4 {[%clk 0:00:35.1]} 49... Ra2 {[%clk 0:00:04.9]} 50. Ndc3
{[%clk 0:00:34.9]} 50... Ra3 {[%clk 0:00:04.5]} 51. Ke3 {[%clk 0:00:35.2]} 51...
Rb3 {[%clk 0:00:04.6]} 52. g4 {[%clk 0:00:33.9]} 52... Kg7 {[%clk 0:00:04]} 53.
Kd4 {[%clk 0:00:33.8]} 53... Rb2 {[%clk 0:00:03.7]} 54. f5 {[%clk 0:00:33.6]}
54... gxf5 {[%clk 0:00:03.5]} 55. gxf5 {[%clk 0:00:33.9]} 55... Kf7 {[%clk
0:00:03.3]} 56. Nd6+ {[%clk 0:00:32.5]} 56... Kf6 {[%clk 0:00:02.9]} 57. Nce4+
{[%clk 0:00:32.6]} 57... Ke7 {[%clk 0:00:02.6]} 58. f6+ {[%clk 0:00:33]} 58...
Ke6 {[%clk 0:00:02.9]} 59. f7 {[%clk 0:00:33.3]} 59... Ke7 {[%clk 0:00:03.6]}
60. Ng5 {[%clk 0:00:30.8]} 60... Rd2+ {[%clk 0:00:02.7]} 61. Ke5 {[%clk
0:00:29.9]} 61... Re2+ {[%clk 0:00:03]} 62. Nge4 {[%clk 0:00:29]} 62... Re1
{[%clk 0:00:02.6]} 63. Nxb7 {[%clk 0:00:27]} 63... Kxf7 {[%clk 0:00:02.4]} 64.
Kd5 {[%clk 0:00:24.5]} 64... Ra1 {[%clk 0:00:02.6]} 65. Nc3 {[%clk 0:00:24]}
65... Ra3 {[%clk 0:00:01.7]} 66. Kd4 {[%clk 0:00:24.3]} 66... Ke7 {[%clk
0:00:01.1]} 67. c5 {[%clk 0:00:23.9]} 67... Rb3 {[%clk 0:00:01.1]} 68. Nxa5
{[%clk 0:00:23.8]} 68... Rb4+ {[%clk 0:00:01.5]} 69. Ke5 {[%clk 0:00:23.9]}
69... Ke8 {[%clk 0:00:01.9]} 70. Nc6 {[%clk 0:00:22.8]} 70... Rc4 {[%clk
0:00:01.5]} 71. Nd5 {[%clk 0:00:21]} 71... Rxc5 {[%clk 0:00:01.9]} 72. Kd6
{[%clk 0:00:21.2]} 72... Rc4 {[%clk 0:00:01.9]} 73. Ndb4 {[%clk 0:00:20.4]}
73... Rc1 {[%clk 0:00:01.6]} 74. Na2 {[%clk 0:00:16.5]} 74... Ra1 {[%clk
0:00:02]} 75. Ncb4 {[%clk 0:00:16.8]} 75... Rb1 {[%clk 0:00:02.3]} 76. a5 {[%clk
0:00:16.7]} 76... Rb3 {[%clk 0:00:02.9]} 77. a6 {[%clk 0:00:09.7]} 77... Ra3
{[%clk 0:00:03.4]} 78. Kc6 {[%clk 0:00:09.8]} 78... Kf7 {[%clk 0:00:03.3]} 79.
Kb6 {[%clk 0:00:09.5]} 79... Ke6 {[%clk 0:00:02.9]} 80. Nc1 {[%clk 0:00:08.8]}
80... Rxa6+ {[%clk 0:00:02.6]} 81. Kxa6 {[%clk 0:00:08.6]} 1/2-1/2